[Event "Live Chess"]
[Site "Chess.com"]
[Date "2023.05.21"]
[Round "-"]
[White "GMHarry-youtube"]
[Black "Dhaydon19"]
[Result "0-1"]
[WhiteElo "2013"]
[BlackElo "2689"]
[TimeControl "300"]
[EndTime "8:11:51 PDT"]
[Termination "Dhaydon19 won by checkmate"]

1. e4 {[%clk 0:04:59.3]} 1... c6 {[%clk 0:04:59.2]} 2. d4 {[%clk 0:04:57.9]}
2... d5 {[%clk 0:04:58.9]} 3. e5 {[%clk 0:04:57.8]} 3... Bf5 {[%clk 0:04:57.8]}
4. h4 {[%clk 0:04:56.8]} 4... h5 {[%clk 0:04:56.6]} 5. Bd3 {[%clk 0:04:56.3]}
5... Bxd3 {[%clk 0:04:55.6]} 6. Qxd3 {[%clk 0:04:56.2]} 6... e6 {[%clk 0:04:55]}
7. Qb3 {[%clk 0:04:55.4]} 7... Qb6 {[%clk 0:04:53.5]} 8. c3 {[%clk 0:04:55.1]}
8... Nd7 {[%clk 0:04:52.3]} 9. Nf3 {[%clk 0:04:52.5]} 9... c5 {[%clk 0:04:51.2]}
10. Be3 {[%clk 0:04:49.7]} 10... Ne7 {[%clk 0:04:48.4]} 11. Nbd2 {[%clk
0:04:48.4]} 11... Nf5 {[%clk 0:04:46.6]} 12. Nf1 {[%clk 0:04:22]} 12... Be7
{[%clk 0:04:43.9]} 13. Qxb6 {[%clk 0:04:17.3]} 13... axb6 {[%clk 0:04:42.1]} 14.
Ng3 {[%clk 0:04:16.2]} 14... Nxg3 {[%clk 0:04:36.1]} 15. fxg3 {[%clk 0:04:16.1]}
15... f6 {[%clk 0:04:35.4]} 16. Bf4 {[%clk 0:04:13.9]} 16... cxd4 {[%clk
0:04:30.8]} 17. Nxd4 {[%clk 0:03:55.3]} 17... fxe5 {[%clk 0:04:29.4]} 18. Nxe6
{[%clk 0:03:54.3]} 18... exf4 {[%clk 0:04:28.4]} 19. Nc7+ {[%clk 0:03:48.4]}
19... Kf7 {[%clk 0:04:27.4]} 20. Nxa8 {[%clk 0:03:46.9]} 20... Rxa8 {[%clk
0:04:26.8]} 21. gxf4 {[%clk 0:03:46.1]} 21... Nf6 {[%clk 0:04:25.2]} 22. g3
{[%clk 0:03:45]} 22... Bc5 {[%clk 0:04:22.3]} 23. Ke2 {[%clk 0:03:42.9]} 23...
b5 {[%clk 0:04:20.8]} 24. b4 {[%clk 0:03:40.1]} 24... Re8+ {[%clk 0:04:18.9]}
25. Kf3 {[%clk 0:03:38.8]} 25... Re3+ {[%clk 0:04:17.4]} 26. Kg2 {[%clk
0:03:37.9]} 26... Bb6 {[%clk 0:04:17]} 27. a4 {[%clk 0:03:35.2]} 27... bxa4
{[%clk 0:04:11.8]} 28. Rhc1 {[%clk 0:03:34.7]} 28... Re2+ {[%clk 0:04:09.6]} 29.
Kh3 {[%clk 0:03:29.5]} 29... Ng4 {[%clk 0:04:07.7]} 30. Rh1 {[%clk 0:03:27.6]}
30... Nf2+ {[%clk 0:04:05.2]} 31. Kg2 {[%clk 0:03:27.1]} 31... Nxh1+ {[%clk
0:04:01.1]} 32. Kxh1 {[%clk 0:03:27]} 32... Re3 {[%clk 0:03:59.5]} 33. Rxa4
{[%clk 0:03:25.9]} 33... Rxc3 {[%clk 0:03:58.5]} 34. f5 {[%clk 0:03:23.8]} 34...
d4 {[%clk 0:03:57.3]} 35. f6 {[%clk 0:03:22]} 35... d3 {[%clk 0:03:56]} 36. fxg7
{[%clk 0:03:19.7]} 36... d2 {[%clk 0:03:54.8]} 37. g8=Q+ {[%clk 0:03:16.3]}
37... Kxg8 {[%clk 0:03:53.3]} 38. Ra1 {[%clk 0:03:12.5]} 38... Rc1+ {[%clk
0:03:52]} 39. Rxc1 {[%clk 0:03:11]} 39... dxc1=Q+ {[%clk 0:03:50.5]} 40. Kh2
{[%clk 0:03:10.9]} 40... Qc2+ {[%clk 0:03:49.7]} 41. Kh3 {[%clk 0:03:10.2]}
41... Qe2 {[%clk 0:03:46.2]} 42. b5 {[%clk 0:03:07.5]} 42... Qf1+ {[%clk
0:03:43.9]} 43. Kh2 {[%clk 0:03:06.3]} 43... Bg1+ {[%clk 0:03:43.6]} 44. Kh1
{[%clk 0:03:05]} 44... Bf2+ {[%clk 0:03:42.9]} 45. Kh2 {[%clk 0:03:04.9]} 45...
Qg1+ {[%clk 0:03:42.4]} 46. Kh3 {[%clk 0:03:04.8]} 46... Qxg3# {[%clk
0:03:41.9]} 0-1

[Event "Live Chess"]
[Site "Chess.com"]
[Date "2023.05.21"]
[Round "-"]
[White "1600x"]
[Black "viktorskliarov"]
[Result "1-0"]
[WhiteElo "1924"]
[BlackElo "2630"]
[TimeControl "300"]
[EndTime "8:11:57 PDT"]
[Termination "1600x won by checkmate"]

1. e4 {[%clk 0:04:57.5]} 1... c5 {[%clk 0:04:58.4]} 2. Nf3 {[%clk 0:04:54.6]}
2... Nc6 {[%clk 0:04:55]} 3. Qe2 {[%clk 0:04:47.2]} 3... g6 {[%clk 0:04:53.2]}
4. Qc4 {[%clk 0:04:44.8]} 4... e6 {[%clk 0:04:41.1]} 5. e5 {[%clk 0:04:42.7]}
5... a6 {[%clk 0:04:28.5]} 6. d3 {[%clk 0:04:34.5]} 6... b5 {[%clk 0:04:24.4]}
7. Qe4 {[%clk 0:04:26.1]} 7... f5 {[%clk 0:04:15.7]} 8. Qe2 {[%clk 0:04:24.7]}
8... Bg7 {[%clk 0:04:05.7]} 9. a4 {[%clk 0:04:21.2]} 9... Bb7 {[%clk 0:03:59.9]}
10. c3 {[%clk 0:04:18.9]} 10... Qc7 {[%clk 0:03:55.1]} 11. Bf4 {[%clk
0:04:12.2]} 11... Nge7 {[%clk 0:03:53]} 12. axb5 {[%clk 0:04:07.8]} 12... axb5
{[%clk 0:03:51.5]} 13. Rxa8+ {[%clk 0:04:05.7]} 13... Bxa8 {[%clk 0:03:51.4]}
14. Na3 {[%clk 0:04:00.3]} 14... Qb8 {[%clk 0:03:46.1]} 15. d4 {[%clk
0:03:40.1]} 15... c4 {[%clk 0:03:42.4]} 16. h4 {[%clk 0:03:38.5]} 16... Nd5
{[%clk 0:03:38.5]} 17. Bc1 {[%clk 0:03:36.2]} 17... h6 {[%clk 0:03:30]} 18. Qd2
{[%clk 0:03:26.6]} 18... Na5 {[%clk 0:03:21.8]} 19. b4 {[%clk 0:03:16.4]} 19...
Nb3 {[%clk 0:03:04.7]} 20. Qb2 {[%clk 0:03:14.6]} 20... Bc6 {[%clk 0:02:49.4]}
21. Nb1 {[%clk 0:03:03.3]} 21... Kf7 {[%clk 0:02:41.2]} 22. Nbd2 {[%clk
0:03:01.6]} 22... Nxc1 {[%clk 0:02:36.2]} 23. Qxc1 {[%clk 0:02:59.1]} 23... Qa7
{[%clk 0:02:35.1]} 24. Nb1 {[%clk 0:02:44.9]} 24... Qa2 {[%clk 0:02:19.6]} 25.
Be2 {[%clk 0:02:42.7]} 25... Bf8 {[%clk 0:01:58.8]} 26. Kf1 {[%clk 0:02:13.1]}
26... Be7 {[%clk 0:01:51.1]} 27. Ne1 {[%clk 0:02:10.3]} 27... Kg7 {[%clk
0:01:41.7]} 28. Bf3 {[%clk 0:02:02.9]} 28... Ra8 {[%clk 0:01:36.4]} 29. Rh3
{[%clk 0:02:00.7]} 29... Qb3 {[%clk 0:01:27.3]} 30. Nd2 {[%clk 0:01:43.5]} 30...
Qa3 {[%clk 0:01:21.1]} 31. Qxa3 {[%clk 0:01:34.1]} 31... Rxa3 {[%clk 0:01:19]}
32. Bxd5 {[%clk 0:01:32]} 32... Bxd5 {[%clk 0:01:17.1]} 33. f4 {[%clk 0:01:29]}
33... g5 {[%clk 0:01:10]} 34. Rg3 {[%clk 0:01:16.8]} 34... g4 {[%clk 0:01:04.6]}
35. Ke2 {[%clk 0:01:14.7]} 35... Bxh4 {[%clk 0:01:03]} 36. Re3 {[%clk
0:01:13.2]} 36... Ra1 {[%clk 0:01:00.5]} 37. g3 {[%clk 0:01:11.7]} 37... Be7
{[%clk 0:00:58]} 38. Kf2 {[%clk 0:01:10.3]} 38... h5 {[%clk 0:00:56.9]} 39. Nf1
{[%clk 0:01:08.5]} 39... h4 {[%clk 0:00:55.5]} 40. Re2 {[%clk 0:01:07.2]} 40...
hxg3+ {[%clk 0:00:52.7]} 41. Nxg3 {[%clk 0:01:05.9]} 41... Bh4 {[%clk
0:00:51.3]} 42. Ng2 {[%clk 0:01:04.6]} 42... Bxg2 {[%clk 0:00:45]} 43. Kxg2
{[%clk 0:01:03.5]} 43... Rc1 {[%clk 0:00:43.5]} 44. Re3 {[%clk 0:00:54.1]} 44...
Bxg3 {[%clk 0:00:40.9]} 45. Kxg3 {[%clk 0:00:52.9]} 45... Rc2 {[%clk 0:00:40]}
46. Kh4 {[%clk 0:00:51.3]} 46... Rh2+ {[%clk 0:00:35.6]} 47. Kg5 {[%clk
0:00:48.8]} 47... Rh3 {[%clk 0:00:34.5]} 48. Re2 {[%clk 0:00:47.4]} 48... Rxc3
{[%clk 0:00:33.2]} 49. d5 {[%clk 0:00:46.2]} 49... Kf7 {[%clk 0:00:31.2]} 50.
Ra2 {[%clk 0:00:43.8]} 50... g3 {[%clk 0:00:26.1]} 51. dxe6+ {[%clk 0:00:42.4]}
51... Kxe6 {[%clk 0:00:24.2]} 52. Ra6+ {[%clk 0:00:41.1]} 52... Kd5 {[%clk
0:00:23.8]} 53. Kxf5 {[%clk 0:00:39.4]} 53... g2 {[%clk 0:00:23]} 54. Rd6#
{[%clk 0:00:37.3]} 1-0

[Event "Live Chess"]
[Site "Chess.com"]
[Date "2023.05.21"]
[Round "-"]
[White "PiotrD11"]
[Black "stevochess11"]
[Result "0-1"]
[WhiteElo "1377"]
[BlackElo "1665"]
[TimeControl "300"]
[EndTime "8:12:07 PDT"]
[Termination "stevochess11 won by checkmate"]

1. e4 {[%clk 0:04:58.6]} 1... c5 {[%clk 0:04:58.5]} 2. d4 {[%clk 0:04:57.1]}
2... cxd4 {[%clk 0:04:57]} 3. c3 {[%clk 0:04:56.8]} 3... dxc3 {[%clk 0:04:55.6]}
4. Nxc3 {[%clk 0:04:56.7]} 4... Nc6 {[%clk 0:04:53.5]} 5. Nf3 {[%clk 0:04:56.4]}
5... a6 {[%clk 0:04:50.5]} 6. Bc4 {[%clk 0:04:55.7]} 6... Nf6 {[%clk 0:04:46.1]}
7. O-O {[%clk 0:04:54.4]} 7... d6 {[%clk 0:04:42.8]} 8. Qe2 {[%clk 0:04:53.6]}
8... Bg4 {[%clk 0:04:41.3]} 9. h3 {[%clk 0:04:51.3]} 9... Nd4 {[%clk 0:04:33.4]}
10. hxg4 {[%clk 0:04:44]} 10... Nxe2+ {[%clk 0:04:31]} 11. Nxe2 {[%clk
0:04:43.7]} 11... Nxg4 {[%clk 0:04:29.1]} 12. Rd1 {[%clk 0:04:40.6]} 12... h5
{[%clk 0:04:26.5]} 13. Ng5 {[%clk 0:04:36.4]} 13... e6 {[%clk 0:04:23.6]} 14.
Bf4 {[%clk 0:04:32.8]} 14... Qb6 {[%clk 0:04:20.7]} 15. Nh3 {[%clk 0:04:03.8]}
15... e5 {[%clk 0:04:10.6]} 16. Bg3 {[%clk 0:04:01.5]} 16... h4 {[%clk
0:04:07.7]} 17. Bh2 {[%clk 0:03:55.4]} 17... Nxh2 {[%clk 0:04:05.2]} 18. Kxh2
{[%clk 0:03:54.4]} 18... Rc8 {[%clk 0:04:02.2]} 19. Bd5 {[%clk 0:03:50.8]} 19...
Rc2 {[%clk 0:03:52.2]} 20. Nc3 {[%clk 0:03:48.2]} 20... Rxf2 {[%clk 0:03:43.6]}
21. Nxf2 {[%clk 0:03:46.4]} 21... Qxf2 {[%clk 0:03:42.4]} 22. Rf1 {[%clk
0:03:45.5]} 22... Qg3+ {[%clk 0:03:39.3]} 23. Kh1 {[%clk 0:03:44.2]} 23... h3
{[%clk 0:03:38.1]} 24. Bxf7+ {[%clk 0:03:35.4]} 24... Ke7 {[%clk 0:03:35.6]} 25.
Nd5+ {[%clk 0:03:33.8]} 25... Kd7 {[%clk 0:03:32.3]} 26. Nb6+ {[%clk 0:03:06]}
26... Kd8 {[%clk 0:03:30.1]} 27. Bh5 {[%clk 0:02:58.7]} 27... Qxg2# {[%clk
0:03:27.8]} 0-1

[Event "Live Chess"]
[Site "Chess.com"]
[Date "2023.05.21"]
[Round "-"]
[White "Andysav3"]
[Black "hturner40"]
[Result "1-0"]
[WhiteElo "1711"]
[BlackElo "1785"]
[TimeControl "300"]
[EndTime "8:12:26 PDT"]
[Termination "Andysav3 won on time"]

1. e4 {[%clk 0:04:58.3]} 1... Nc6 {[%clk 0:04:58.1]} 2. Nf3 {[%clk 0:04:55.8]}
2... e5 {[%clk 0:04:56.9]} 3. d4 {[%clk 0:04:53.5]} 3... exd4 {[%clk 0:04:55.2]}
4. Bc4 {[%clk 0:04:51.8]} 4... Nf6 {[%clk 0:04:50.5]} 5. O-O {[%clk 0:04:50.2]}
5... Nxe4 {[%clk 0:04:48.4]} 6. Re1 {[%clk 0:04:48.7]} 6... d5 {[%clk
0:04:46.7]} 7. Bxd5 {[%clk 0:04:46.7]} 7... Qxd5 {[%clk 0:04:45.7]} 8. Nc3
{[%clk 0:04:45]} 8... Qd7 {[%clk 0:04:44.4]} 9. Nxe4 {[%clk 0:04:13.1]} 9... Be7
{[%clk 0:04:38.9]} 10. Bf4 {[%clk 0:03:48.5]} 10... O-O {[%clk 0:04:33.3]} 11.
Qd2 {[%clk 0:03:45]} 11... Bb4 {[%clk 0:04:02.3]} 12. c3 {[%clk 0:03:34.2]}
12... dxc3 {[%clk 0:03:58.9]} 13. Qxd7 {[%clk 0:03:29.2]} 13... Bxd7 {[%clk
0:03:56.5]} 14. bxc3 {[%clk 0:03:26.6]} 14... Ba5 {[%clk 0:03:54.2]} 15. Nc5
{[%clk 0:03:05.8]} 15... Bc8 {[%clk 0:03:47.6]} 16. Rac1 {[%clk 0:02:53]} 16...
b6 {[%clk 0:03:30.7]} 17. Nb3 {[%clk 0:02:37.4]} 17... Be6 {[%clk 0:03:28.4]}
18. Bxc7 {[%clk 0:02:31.1]} 18... Rac8 {[%clk 0:03:19.9]} 19. Bg3 {[%clk
0:02:16.1]} 19... b5 {[%clk 0:02:56.6]} 20. Ng5 {[%clk 0:01:58]} 20... Bc4
{[%clk 0:02:38.2]} 21. Nxa5 {[%clk 0:01:40.2]} 21... Nxa5 {[%clk 0:02:35]} 22.
Re7 {[%clk 0:01:38.3]} 22... Nc6 {[%clk 0:02:24.5]} 23. Rd7 {[%clk 0:01:34.5]}
23... h6 {[%clk 0:02:09.8]} 24. Ne4 {[%clk 0:01:32.3]} 24... Bxa2 {[%clk
0:01:58.2]} 25. Nc5 {[%clk 0:01:18.3]} 25... b4 {[%clk 0:01:43.7]} 26. cxb4
{[%clk 0:01:11.8]} 26... Nxb4 {[%clk 0:01:42.6]} 27. Rxa7 {[%clk 0:01:05]} 27...
Rfd8 {[%clk 0:01:26.7]} 28. h4 {[%clk 0:00:56.1]} 28... Bd5 {[%clk 0:00:27.9]}
29. Nb7 {[%clk 0:00:48.3]} 29... Bxb7 {[%clk 0:00:20.9]} 30. Rb1 {[%clk
0:00:43.1]} 30... Bxg2 {[%clk 0:00:10.1]} 31. Kxg2 {[%clk 0:00:39]} 31... Nc6
{[%clk 0:00:08.3]} 32. Rab7 {[%clk 0:00:37.1]} 32... Rd2 {[%clk 0:00:06.1]} 33.
Bf4 {[%clk 0:00:34.5]} 33... Rc2 {[%clk 0:00:03.2]} 34. Be3 {[%clk 0:00:33]}
34... Re8 {[%clk 0:00:00.1]} 35. Rc7 {[%clk 0:00:30.6]} 1-0

[Event "Live Chess"]
[Site "Chess.com"]
[Date "2023.05.21"]
[Round "-"]
[White "Mugzwang"]
[Black "SimpleHarmonic1"]
[Result "0-1"]
[WhiteElo "1457"]
[BlackElo "2050"]
[TimeControl "300"]
[EndTime "8:12:37 PDT"]
[Termination "SimpleHarmonic1 won on time"]

1. g3 {[%clk 0:04:57.1]} 1... Nf6 {[%clk 0:04:59]} 2. Nf3 {[%clk 0:04:54.7]}
2... e6 {[%clk 0:04:58.9]} 3. Bg2 {[%clk 0:04:50.7]} 3... Be7 {[%clk 0:04:58.8]}
4. O-O {[%clk 0:04:43.9]} 4... O-O {[%clk 0:04:58.7]} 5. d4 {[%clk 0:04:41.6]}
5... d5 {[%clk 0:04:53.4]} 6. e3 {[%clk 0:04:33]} 6... b6 {[%clk 0:04:49.1]} 7.
b3 {[%clk 0:04:28.3]} 7... Bb7 {[%clk 0:04:48.3]} 8. Ba3 {[%clk 0:04:24.7]} 8...
Bxa3 {[%clk 0:04:43.8]} 9. Nxa3 {[%clk 0:04:23.3]} 9... a6 {[%clk 0:04:43.7]}
10. c4 {[%clk 0:04:21.5]} 10... Nbd7 {[%clk 0:04:37.8]} 11. cxd5 {[%clk
0:04:14.1]} 11... exd5 {[%clk 0:04:35.9]} 12. Rc1 {[%clk 0:04:11.5]} 12... c5
{[%clk 0:04:28.8]} 13. dxc5 {[%clk 0:04:02.3]} 13... bxc5 {[%clk 0:04:26.9]} 14.
Rc2 {[%clk 0:03:27.8]} 14... Qa5 {[%clk 0:04:00.1]} 15. Qc1 {[%clk 0:03:07.8]}
15... Rfe8 {[%clk 0:03:58.6]} 16. Nb1 {[%clk 0:03:05]} 16... Rac8 {[%clk
0:03:55.3]} 17. Nc3 {[%clk 0:02:59.2]} 17... d4 {[%clk 0:03:31.5]} 18. exd4
{[%clk 0:02:52.4]} 18... cxd4 {[%clk 0:03:29.1]} 19. Nxd4 {[%clk 0:02:29.2]}
19... Bxg2 {[%clk 0:03:28.2]} 20. Kxg2 {[%clk 0:02:22.3]} 20... Nd5 {[%clk
0:03:23.9]} 21. Nxd5 {[%clk 0:02:14.3]} 21... Qxd5+ {[%clk 0:03:23.5]} 22. Nf3
{[%clk 0:02:05.6]} 22... Rxc2 {[%clk 0:03:22.1]} 23. Qxc2 {[%clk 0:02:01.8]}
23... Ne5 {[%clk 0:03:21.7]} 24. Qc3 {[%clk 0:01:46.9]} 24... Nxf3 {[%clk
0:02:45.2]} 25. Qxf3 {[%clk 0:01:43]} 25... Qd2 {[%clk 0:02:37.9]} 26. Rd1
{[%clk 0:01:33.3]} 26... Qxa2 {[%clk 0:02:34.6]} 27. Qe3 {[%clk 0:01:10]} 27...
Rf8 {[%clk 0:02:05.1]} 28. Qe7 {[%clk 0:00:59.7]} 28... Qa5 {[%clk 0:02:02.8]}
29. Rd3 {[%clk 0:00:37.1]} 29... h6 {[%clk 0:01:55.8]} 30. b4 {[%clk 0:00:25.1]}
30... Qb6 {[%clk 0:01:52.7]} 31. Qc5 {[%clk 0:00:18.7]} 31... Qb7+ {[%clk
0:01:49.9]} 32. Kg1 {[%clk 0:00:12.7]} 32... Rc8 {[%clk 0:01:49.4]} 33. Qd5
{[%clk 0:00:01.1]} 33... Qxb4 {[%clk 0:01:39.2]} 0-1

[Event "Live Chess"]
[Site "Chess.com"]
[Date "2023.05.21"]
[Round "-"]
[White "slava_ukr"]
[Black "Ferrarifan27"]
[Result "1-0"]
[WhiteElo "2341"]
[BlackElo "2047"]
[TimeControl "300"]
[EndTime "8:12:44 PDT"]
[Termination "slava_ukr won by resignation"]

1. e4 {[%clk 0:04:57.7]} 1... e5 {[%clk 0:04:58.5]} 2. Nf3 {[%clk 0:04:55]} 2...
Nc6 {[%clk 0:04:55.1]} 3. Bb5 {[%clk 0:04:54.2]} 3... a6 {[%clk 0:04:53.8]} 4.
Bxc6 {[%clk 0:04:53.3]} 4... dxc6 {[%clk 0:04:52.1]} 5. O-O {[%clk 0:04:52.4]}
5... Bg4 {[%clk 0:04:50.7]} 6. h3 {[%clk 0:04:51.7]} 6... h5 {[%clk 0:04:49.7]}
7. d3 {[%clk 0:04:50.8]} 7... Qf6 {[%clk 0:04:45.2]} 8. Be3 {[%clk 0:04:49.8]}
8... Bxf3 {[%clk 0:04:42.4]} 9. Qxf3 {[%clk 0:04:48.8]} 9... Qxf3 {[%clk
0:04:41.6]} 10. gxf3 {[%clk 0:04:47.9]} 10... Bd6 {[%clk 0:04:40.3]} 11. Nd2
{[%clk 0:04:44.2]} 11... Ne7 {[%clk 0:04:39.2]} 12. d4 {[%clk 0:04:37.6]} 12...
Ng6 {[%clk 0:04:33.8]} 13. dxe5 {[%clk 0:04:35.5]} 13... Bxe5 {[%clk 0:04:31.8]}
14. Nc4 {[%clk 0:04:21.1]} 14... Bf4 {[%clk 0:04:25.1]} 15. Rad1 {[%clk
0:03:57.3]} 15... Rd8 {[%clk 0:04:22.6]} 16. Rxd8+ {[%clk 0:03:49.1]} 16... Kxd8
{[%clk 0:04:22.5]} 17. Rd1+ {[%clk 0:03:47.9]} 17... Kc8 {[%clk 0:04:21.6]} 18.
Kf1 {[%clk 0:03:46.8]} 18... Rd8 {[%clk 0:04:19.2]} 19. Rxd8+ {[%clk 0:03:45.1]}
19... Kxd8 {[%clk 0:04:19.1]} 20. Ke2 {[%clk 0:03:39.5]} 20... b5 {[%clk
0:04:10.5]} 21. Na5 {[%clk 0:03:31.2]} 21... Kd7 {[%clk 0:04:09.2]} 22. Nb7
{[%clk 0:03:28.2]} 22... Bd6 {[%clk 0:04:02]} 23. b3 {[%clk 0:03:17]} 23... Kc8
{[%clk 0:03:56.2]} 24. Na5 {[%clk 0:03:15.5]} 24... Kd7 {[%clk 0:03:55.4]} 25.
c4 {[%clk 0:03:09.9]} 25... Nf4+ {[%clk 0:03:50.8]} 26. Bxf4 {[%clk 0:03:08.8]}
26... Bxf4 {[%clk 0:03:50.6]} 27. Kd3 {[%clk 0:02:54.5]} 27... Kd6 {[%clk
0:03:46.7]} 28. Nb7+ {[%clk 0:02:49.8]} 28... Ke7 {[%clk 0:03:41.2]} 29. a4
{[%clk 0:02:29.6]} 29... bxa4 {[%clk 0:03:37.3]} 30. bxa4 {[%clk 0:02:28.6]}
30... Bd6 {[%clk 0:03:35.8]} 31. Na5 {[%clk 0:02:26.4]} 31... Kd7 {[%clk
0:03:33.3]} 32. Nb3 {[%clk 0:02:25]} 32... Bb4 {[%clk 0:03:28.7]} 33. f4 {[%clk
0:02:17.1]} 33... c5 {[%clk 0:03:20.7]} 34. Ke3 {[%clk 0:02:11.6]} 34... Ke6
{[%clk 0:03:19.4]} 35. f5+ {[%clk 0:02:10.5]} 35... Kd6 {[%clk 0:03:13.9]} 36.
Nc1 {[%clk 0:02:08.3]} 36... Bc3 {[%clk 0:03:09]} 37. f4 {[%clk 0:02:02.6]}
37... Kc6 {[%clk 0:02:58.8]} 38. e5 {[%clk 0:01:59.4]} 38... Kb6 {[%clk
0:02:48.2]} 39. Nb3 {[%clk 0:01:58]} 39... Kc6 {[%clk 0:02:43.6]} 40. Ke4 {[%clk
0:01:56.6]} 40... Bb4 {[%clk 0:02:37.4]} 41. Nc1 {[%clk 0:01:49.1]} 41... Kd7
{[%clk 0:02:32.1]} 42. Nd3 {[%clk 0:01:42.6]} 42... c6 {[%clk 0:02:26.8]} 43.
Nf2 {[%clk 0:01:36.4]} 43... a5 {[%clk 0:02:22.7]} 44. Nh1 {[%clk 0:01:33.7]}
44... Be1 {[%clk 0:02:18.7]} 45. Ke3 {[%clk 0:01:32.7]} 45... Ke7 {[%clk
0:02:09.1]} 46. Nf2 {[%clk 0:01:31.4]} 46... Kd7 {[%clk 0:01:54]} 47. Ne4 {[%clk
0:01:29.8]} 47... Bb4 {[%clk 0:01:50.9]} 48. Ng5 {[%clk 0:01:27.5]} 48... Ke7
{[%clk 0:01:48]} 49. Ke4 {[%clk 0:01:26.2]} 49... Be1 {[%clk 0:01:36.9]} 50. Nf3
{[%clk 0:01:23.8]} 50... Bb4 {[%clk 0:01:35.6]} 51. Ng1 {[%clk 0:01:22.4]} 51...
Be1 {[%clk 0:01:31.7]} 52. Ne2 {[%clk 0:01:21.4]} 52... Bb4 {[%clk 0:01:27.1]}
53. Ng3 {[%clk 0:01:20.3]} 53... h4 {[%clk 0:01:19.8]} 54. Ne2 {[%clk
0:01:18.6]} 54... Be1 {[%clk 0:01:17.4]} 55. Ng1 {[%clk 0:01:17.6]} 55... Bf2
{[%clk 0:01:13.8]} 56. Nf3 {[%clk 0:01:16.6]} 56... Bg3 {[%clk 0:01:11.2]} 57.
Ng5 {[%clk 0:01:15]} 57... Bf2 {[%clk 0:01:07.1]} 58. Kf3 {[%clk 0:01:14]} 58...
Be1 {[%clk 0:01:05]} 59. Kg4 {[%clk 0:01:13.1]} 59... f6 {[%clk 0:00:53.5]} 60.
Nf3 {[%clk 0:01:10.4]} 60... Bc3 {[%clk 0:00:46.5]} 61. Kxh4 {[%clk 0:01:07.3]}
61... Bd4 {[%clk 0:00:37.2]} 62. Kg4 {[%clk 0:01:06.4]} 62... Kf7 {[%clk
0:00:35.8]} 63. Kh5 {[%clk 0:01:04.9]} 63... fxe5 {[%clk 0:00:33.2]} 64. fxe5
{[%clk 0:01:03.8]} 64... Be3 {[%clk 0:00:30.7]} 65. Kg4 {[%clk 0:01:02.8]} 65...
Bc1 {[%clk 0:00:28.4]} 66. h4 {[%clk 0:01:01.6]} 66... Be3 {[%clk 0:00:26.3]}
67. Ne1 {[%clk 0:01:00.6]} 67... Bf2 {[%clk 0:00:24.8]} 68. Nd3 {[%clk
0:00:59.5]} 68... Bd4 {[%clk 0:00:23.8]} 69. Kf3 {[%clk 0:00:56.5]} 69... Ke7
{[%clk 0:00:22.3]} 70. Ke4 {[%clk 0:00:55.4]} 70... Kf7 {[%clk 0:00:21.2]} 71.
Nf4 {[%clk 0:00:54.5]} 71... Ke7 {[%clk 0:00:18.8]} 72. h5 {[%clk 0:00:49.7]}
72... Kf7 {[%clk 0:00:17.4]} 73. Ne6 {[%clk 0:00:48.7]} 73... Bf2 {[%clk
0:00:16.2]} 74. Nd8+ {[%clk 0:00:47.1]} 74... Ke7 {[%clk 0:00:15.4]} 75. Nxc6+
{[%clk 0:00:46.1]} 75... Kd7 {[%clk 0:00:14.9]} 76. Nxa5 {[%clk 0:00:45.2]}
76... Kc7 {[%clk 0:00:14.1]} 77. Nb3 {[%clk 0:00:43.1]} 1-0

[Event "Live Chess"]
[Site "Chess.com"]
[Date "2023.05.21"]
[Round "-"]
[White "tpm07"]
[Black "MartynColebrook"]
[Result "1-0"]
[WhiteElo "1965"]
[BlackElo "1222"]
[TimeControl "300"]
[EndTime "8:12:44 PDT"]
[Termination "tpm07 won by checkmate"]

1. e4 {[%clk 0:04:57.7]} 1... d5 {[%clk 0:04:56.7]} 2. Nc3 {[%clk 0:04:55.9]}
2... dxe4 {[%clk 0:04:54.1]} 3. Nxe4 {[%clk 0:04:54.8]} 3... e5 {[%clk
0:04:50.3]} 4. Bc4 {[%clk 0:04:51.4]} 4... f5 {[%clk 0:04:41.8]} 5. Nc3 {[%clk
0:04:35]} 5... Nf6 {[%clk 0:04:36.8]} 6. d3 {[%clk 0:04:33.7]} 6... Bc5 {[%clk
0:04:34.2]} 7. Nf3 {[%clk 0:04:25]} 7... e4 {[%clk 0:04:30.4]} 8. Ng5 {[%clk
0:04:11.8]} 8... exd3 {[%clk 0:04:19]} 9. O-O {[%clk 0:04:07.3]} 9... Rf8 {[%clk
0:04:01.1]} 10. cxd3 {[%clk 0:04:00.3]} 10... Nc6 {[%clk 0:03:46.6]} 11. Nxh7
{[%clk 0:03:51.8]} 11... Rh8 {[%clk 0:03:41.6]} 12. Re1+ {[%clk 0:03:39.3]}
12... Kd7 {[%clk 0:03:38.3]} 13. Be6+ {[%clk 0:03:27.8]} 13... Kd6 {[%clk
0:03:35.6]} 14. Bf4+ {[%clk 0:03:12]} 14... Ke7 {[%clk 0:03:23.8]} 15. Bxc8+
{[%clk 0:03:09.3]} 15... Kf7 {[%clk 0:03:20.8]} 16. Ng5+ {[%clk 0:03:02.2]}
16... Kg6 {[%clk 0:03:16.5]} 17. Be6 {[%clk 0:02:49.6]} 17... Ng4 {[%clk
0:02:57.4]} 18. Bf7+ {[%clk 0:02:21.4]} 18... Kf6 {[%clk 0:02:45.9]} 19. Nd5+
{[%clk 0:02:19.7]} 19... Qxd5 {[%clk 0:02:21.8]} 20. Bxd5 {[%clk 0:02:18.7]}
20... Nxf2 {[%clk 0:02:19.2]} 21. Re6# {[%clk 0:02:12.5]} 1-0